Department Family,Entity,Date,Expense Type,Expense Area,Supplier,Transaction Number,Amount
DOH,London Ambulance Service NHS Trust,05/04/2023,Medical Equipment,Managed Stores,Stryker Uk Ltd,680192,-396
DOH,London Ambulance Service NHS Trust,05/04/2023,Ambulance Equipment,Managed Stores,Stryker Uk Ltd,680192,-29304
DOH,London Ambulance Service NHS Trust,05/04/2023,Seconded Staff Senior Managers,Service And Partnership Devel,Nhs North East London Icb,7013,25470.09
DOH,London Ambulance Service NHS Trust,05/04/2023,Vehicle Recovery,Fleet Support Services,The Mansfield Group,706575,97226.7
DOH,London Ambulance Service NHS Trust,19/04/2023,Managed Service - Call Handler,111 Sel Operations,Herts Urgent Care,707016,273441.75
DOH,London Ambulance Service NHS Trust,05/04/2023,Ambulance Equipment,Supply & Material Management,Stryker Uk Ltd,708167,42000
DOH,London Ambulance Service NHS Trust,05/04/2023,Ambulance Equipment,Supply & Material Management,Laerdal Medical As,709254,141400.34
DOH,London Ambulance Service NHS Trust,05/04/2023,Office & Station Equipment,Supply & Material Management,Creative Software Solutions (Europe) Ltd,709356,29476.86
DOH,London Ambulance Service NHS Trust,05/04/2023,Service Charges,Brentside Park Training,Emerson Management Services Limited,709733,78804
DOH,London Ambulance Service NHS Trust,05/04/2023,Uniform,Clinical Ed Administration,The Cooneen Group,709924,97900.21
DOH,London Ambulance Service NHS Trust,14/04/2023,Building Maintenance,Greenwich Estates,Fletchers Facilities Ltd,710106,64425.71
DOH,London Ambulance Service NHS Trust,05/04/2023,Buildings,Capital,Cooper Clarke Contruction Ltd,710660,78296.36
DOH,London Ambulance Service NHS Trust,05/04/2023,Buildings,Capital,Cooper Clarke Contruction Ltd,710661,68361
DOH,London Ambulance Service NHS Trust,19/04/2023,Managed Service - Call Handler,111 Sel Operations,Herts Urgent Care,711083,258184.85
DOH,London Ambulance Service NHS Trust,12/04/2023,Buildings,Capital,A & D Industrial Doors Ltd,711213,29899.68
DOH,London Ambulance Service NHS Trust,05/04/2023,Computer Software Maintenance,Crew Safety System Units,Edc Systems Ltd T/A Traffilog,712508,106704
DOH,London Ambulance Service NHS Trust,19/04/2023,Rent,Newham Training,London Borough Of Newham,712786,126341.24
DOH,London Ambulance Service NHS Trust,19/04/2023,Rent,Newham Training,London Borough Of Newham,712808,39637.5
DOH,London Ambulance Service NHS Trust,19/04/2023,Rent,Newham Training,London Borough Of Newham,712808,39637.5
DOH,London Ambulance Service NHS Trust,19/04/2023,Service Charges,Newham Training,London Borough Of Newham,712808,48360
DOH,London Ambulance Service NHS Trust,14/04/2023,Course And Conference Fees,Hee Income Paramedic Science 2022-23,St. Georges University Of London,713247,212715.6
DOH,London Ambulance Service NHS Trust,05/04/2023,Computer Software,Ipad Clincal Apps,Class Publishing,713359,241486.8
DOH,London Ambulance Service NHS Trust,05/04/2023,Computer Periphs & Accessories,Body Worn Camera,Motorola Solutions Uk Ltd,713454,42655.2
DOH,London Ambulance Service NHS Trust,05/04/2023,Hire Of Meeting Rooms,Trust Management,The Independents Hotel Reservations Ltd,713765,30000
DOH,London Ambulance Service NHS Trust,11/04/2023,Vehicles,Capital,Vehicle Conversion Specialists Ltd,713910,122062.51
DOH,London Ambulance Service NHS Trust,11/04/2023,Vehicles,Capital,Vehicle Conversion Specialists Ltd,713911,122062.51
DOH,London Ambulance Service NHS Trust,11/04/2023,Vehicles,Capital,Vehicle Conversion Specialists Ltd,713912,122062.51
DOH,London Ambulance Service NHS Trust,11/04/2023,Vehicles,Capital,Vehicle Conversion Specialists Ltd,713913,122062.51
DOH,London Ambulance Service NHS Trust,11/04/2023,Vehicles,Capital,Vehicle Conversion Specialists Ltd,713914,122062.51
DOH,London Ambulance Service NHS Trust,11/04/2023,Vehicles,Capital,Vehicle Conversion Specialists Ltd,713915,122062.51
DOH,London Ambulance Service NHS Trust,11/04/2023,Vehicles,Capital,Vehicle Conversion Specialists Ltd,713916,122062.51
DOH,London Ambulance Service NHS Trust,11/04/2023,Vehicles,Capital,Vehicle Conversion Specialists Ltd,713917,122062.51
DOH,London Ambulance Service NHS Trust,11/04/2023,Vehicles,Capital,Vehicle Conversion Specialists Ltd,713918,122062.51
DOH,London Ambulance Service NHS Trust,11/04/2023,Vehicles,Capital,Vehicle Conversion Specialists Ltd,713919,122062.51
DOH,London Ambulance Service NHS Trust,11/04/2023,Vehicles,Capital,Vehicle Conversion Specialists Ltd,713920,122062.51
DOH,London Ambulance Service NHS Trust,11/04/2023,Vehicles,Capital,Vehicle Conversion Specialists Ltd,713921,122062.51
DOH,London Ambulance Service NHS Trust,11/04/2023,Vehicles,Capital,Vehicle Conversion Specialists Ltd,713922,122062.51
DOH,London Ambulance Service NHS Trust,11/04/2023,Vehicles,Capital,Vehicle Conversion Specialists Ltd,713923,122062.51
DOH,London Ambulance Service NHS Trust,11/04/2023,Vehicles,Capital,Vehicle Conversion Specialists Ltd,713935,122062.51
DOH,London Ambulance Service NHS Trust,11/04/2023,Vehicles,Capital,Vehicle Conversion Specialists Ltd,713936,122062.51
DOH,London Ambulance Service NHS Trust,11/04/2023,Vehicles,Capital,Vehicle Conversion Specialists Ltd,713937,122062.51
DOH,London Ambulance Service NHS Trust,11/04/2023,Vehicles,Capital,Vehicle Conversion Specialists Ltd,713938,122062.51
DOH,London Ambulance Service NHS Trust,11/04/2023,Vehicles,Capital,Vehicle Conversion Specialists Ltd,713939,122062.51
DOH,London Ambulance Service NHS Trust,11/04/2023,Vehicles,Capital,Vehicle Conversion Specialists Ltd,713940,122062.51
DOH,London Ambulance Service NHS Trust,05/04/2023,Computer Periphs & Accessories,Body Worn Camera,Motorola Solutions Uk Ltd,713974,31920
DOH,London Ambulance Service NHS Trust,05/04/2023,General Accessories,Fleet Support Services,Mark Powell Mechanical Service Ltd,713982,36007.2
DOH,London Ambulance Service NHS Trust,14/04/2023,Vehicles,Capital,Volvo Car Uk Ltd,714006,82849.55
DOH,London Ambulance Service NHS Trust,14/04/2023,Vehicles,Capital,Volvo Car Uk Ltd,714007,82849.55
DOH,London Ambulance Service NHS Trust,14/04/2023,Vehicles,Capital,Volvo Car Uk Ltd,714008,76403.2
DOH,London Ambulance Service NHS Trust,14/04/2023,Vehicles,Capital,Volvo Car Uk Ltd,714009,82849.55
DOH,London Ambulance Service NHS Trust,14/04/2023,Vehicles,Capital,Volvo Car Uk Ltd,714010,82849.55
DOH,London Ambulance Service NHS Trust,14/04/2023,Vehicles,Capital,Volvo Car Uk Ltd,714011,76403.2
DOH,London Ambulance Service NHS Trust,14/04/2023,Vehicles,Capital,Volvo Car Uk Ltd,714012,82849.55
DOH,London Ambulance Service NHS Trust,14/04/2023,Vehicles,Capital,Volvo Car Uk Ltd,714013,82849.55
DOH,London Ambulance Service NHS Trust,14/04/2023,Vehicles,Capital,Volvo Car Uk Ltd,714014,82849.55
DOH,London Ambulance Service NHS Trust,14/04/2023,Vehicles,Capital,Volvo Car Uk Ltd,714015,82849.55
DOH,London Ambulance Service NHS Trust,14/04/2023,Vehicles,Capital,Volvo Car Uk Ltd,714016,82849.55
DOH,London Ambulance Service NHS Trust,14/04/2023,Vehicles,Capital,Volvo Car Uk Ltd,714017,76403.2
DOH,London Ambulance Service NHS Trust,14/04/2023,Vehicles,Capital,Volvo Car Uk Ltd,714018,76403.2
DOH,London Ambulance Service NHS Trust,05/04/2023,Blanket Purchase,Supply & Material Management,Mip Uk Ltd,714068,32940
DOH,London Ambulance Service NHS Trust,05/04/2023,Blanket Purchase,Supply & Material Management,Mip Uk Ltd,714069,65880
DOH,London Ambulance Service NHS Trust,12/04/2023,Course And Conference Fees,Hee Placements 2020-21,Kings College London,714100,50000
DOH,London Ambulance Service NHS Trust,12/04/2023,Ambulance Equipment,Supply & Material Management,Oxylitre Ltd,714246,34948.5
DOH,London Ambulance Service NHS Trust,05/04/2023,Course And Conference Fees,Hee Income Uni Placements,University Of Greenwich,714271,50000
DOH,London Ambulance Service NHS Trust,05/04/2023,Vehicles,Capital,Volvo Car Uk Ltd,714376,82849.55
DOH,London Ambulance Service NHS Trust,05/04/2023,Postage & Carriage,Managed Stores,Tactree,714403,354
DOH,London Ambulance Service NHS Trust,05/04/2023,Ambulance Equipment,Managed Stores,Tactree,714403,40868.48
DOH,London Ambulance Service NHS Trust,05/04/2023,Buildings,Capital,Coniston Limited,714410,192000
DOH,London Ambulance Service NHS Trust,05/04/2023,Vehicles,Capital,Volvo Car Uk Ltd,714486,44664
DOH,London Ambulance Service NHS Trust,05/04/2023,Vehicles,Capital,Volvo Car Uk Ltd,714487,38530
DOH,London Ambulance Service NHS Trust,05/04/2023,Vehicles,Capital,Volvo Car Uk Ltd,714488,38530
DOH,London Ambulance Service NHS Trust,05/04/2023,Vehicles,Capital,Volvo Car Uk Ltd,714489,38530
DOH,London Ambulance Service NHS Trust,05/04/2023,Vehicles,Capital,Volvo Car Uk Ltd,714490,40171
DOH,London Ambulance Service NHS Trust,05/04/2023,Vehicles,Capital,Volvo Car Uk Ltd,714491,44141.12
DOH,London Ambulance Service NHS Trust,05/04/2023,Vehicles,Capital,Volvo Car Uk Ltd,714492,39319
DOH,London Ambulance Service NHS Trust,05/04/2023,Vehicles,Capital,Volvo Car Uk Ltd,714493,44664
DOH,London Ambulance Service NHS Trust,05/04/2023,Vehicles,Capital,Volvo Car Uk Ltd,714494,38530
DOH,London Ambulance Service NHS Trust,05/04/2023,Vehicles,Capital,Volvo Car Uk Ltd,714499,44141.12
DOH,London Ambulance Service NHS Trust,05/04/2023,Vehicles,Capital,Volvo Car Uk Ltd,714500,44242.53
DOH,London Ambulance Service NHS Trust,14/04/2023,Course And Conference Fees,Hee Income Paramedic Science 2022-23,Queen Mary University,714501,396000
DOH,London Ambulance Service NHS Trust,05/04/2023,Vehicles,Capital,Volvo Car Uk Ltd,714502,44141.12
DOH,London Ambulance Service NHS Trust,05/04/2023,Vehicles,Capital,Volvo Car Uk Ltd,714503,44242.53
DOH,London Ambulance Service NHS Trust,05/04/2023,Vehicles,Capital,Volvo Car Uk Ltd,714504,44141.12
DOH,London Ambulance Service NHS Trust,19/04/2023,Service Charges,Brent Unit 11 Falcon Park,Workman Llp,714729,1634.38
DOH,London Ambulance Service NHS Trust,19/04/2023,Rent,Brent Unit 11 Falcon Park,Workman Llp,714729,53174.87
DOH,London Ambulance Service NHS Trust,19/04/2023,Computer Software,Supply & Material Management,Creative Software Solutions (Europe) Ltd,714743,143095.2
DOH,London Ambulance Service NHS Trust,19/04/2023,Computer Software,Supply & Material Management,Creative Software Solutions (Europe) Ltd,714746,26280
DOH,London Ambulance Service NHS Trust,05/04/2023,Course And Conference Fees,Hee Placements 2020-21,World Extreme Medicine Ltd,714824,30000
DOH,London Ambulance Service NHS Trust,05/04/2023,Agency Gp,111 Nel Operations - Cas,Integrated Care Group Ltd,714867,25566.13
DOH,London Ambulance Service NHS Trust,12/04/2023,Furniture & Fittings,Hee Income Uni Placements 2021-22,Bhc Healthcare Furniture Ltd,714913,28500.97
DOH,London Ambulance Service NHS Trust,11/04/2023,Vehicles,Capital,Vehicle Conversion Specialists Ltd,714922,122062.51
DOH,London Ambulance Service NHS Trust,14/04/2023,Consultancy Fees,111 Iuc Central Cost,Apira Limited,714950,76500
DOH,London Ambulance Service NHS Trust,14/04/2023,Professional Fees & Services,Director Of Finance,Apira Limited,714951,35700
DOH,London Ambulance Service NHS Trust,05/04/2023,Computer Software,"It Risk, Governance & Cyber",Boxxe,714960,26242.85
DOH,London Ambulance Service NHS Trust,05/04/2023,External Training Services,"It Risk, Governance & Cyber",Boxxe,714965,26345.12
DOH,London Ambulance Service NHS Trust,05/04/2023,Buildings,Capital,Ml Communications Ltd,714976,28320
DOH,London Ambulance Service NHS Trust,05/04/2023,General Accessories,Cycle Response Unit,Philips Electronics Uk Limited,714980,191820
DOH,London Ambulance Service NHS Trust,05/04/2023,Medical Equipment,Capital,Laerdal Medical As,714982,69818.4
DOH,London Ambulance Service NHS Trust,05/04/2023,Vehicles,Capital,Tp Leasing Ltd,715105,53640
DOH,London Ambulance Service NHS Trust,12/04/2023,Building Maintenance,Newham Training,Coniston Limited,715173,35994
DOH,London Ambulance Service NHS Trust,05/04/2023,Agency Professional Staff,Make Ready - Insource Costs,Build Recruitment Ltd,715283,32541.25
DOH,London Ambulance Service NHS Trust,11/04/2023,Vehicles,Capital,Vehicle Conversion Specialists Ltd,715457,-122062.51
DOH,London Ambulance Service NHS Trust,11/04/2023,Vehicles,Capital,Vehicle Conversion Specialists Ltd,715458,-122062.51
DOH,London Ambulance Service NHS Trust,11/04/2023,Vehicles,Capital,Vehicle Conversion Specialists Ltd,715459,-122062.51
DOH,London Ambulance Service NHS Trust,11/04/2023,Vehicles,Capital,Vehicle Conversion Specialists Ltd,715460,-122062.51
DOH,London Ambulance Service NHS Trust,11/04/2023,Vehicles,Capital,Vehicle Conversion Specialists Ltd,715461,-122062.51
DOH,London Ambulance Service NHS Trust,11/04/2023,Vehicles,Capital,Vehicle Conversion Specialists Ltd,715462,-122062.51
DOH,London Ambulance Service NHS Trust,11/04/2023,Vehicles,Capital,Vehicle Conversion Specialists Ltd,715465,-122062.51
DOH,London Ambulance Service NHS Trust,11/04/2023,Vehicles,Capital,Vehicle Conversion Specialists Ltd,715466,-122062.51
DOH,London Ambulance Service NHS Trust,11/04/2023,Vehicles,Capital,Vehicle Conversion Specialists Ltd,715467,-122062.51
DOH,London Ambulance Service NHS Trust,11/04/2023,Vehicles,Capital,Vehicle Conversion Specialists Ltd,715468,-122062.51
DOH,London Ambulance Service NHS Trust,11/04/2023,Vehicles,Capital,Vehicle Conversion Specialists Ltd,715469,-122062.51
DOH,London Ambulance Service NHS Trust,11/04/2023,Vehicles,Capital,Vehicle Conversion Specialists Ltd,715470,-122062.51
DOH,London Ambulance Service NHS Trust,11/04/2023,Vehicles,Capital,Vehicle Conversion Specialists Ltd,715471,-122062.51
DOH,London Ambulance Service NHS Trust,11/04/2023,Vehicles,Capital,Vehicle Conversion Specialists Ltd,715472,-122062.51
DOH,London Ambulance Service NHS Trust,11/04/2023,Vehicles,Capital,Vehicle Conversion Specialists Ltd,715473,-122062.51
DOH,London Ambulance Service NHS Trust,11/04/2023,Vehicles,Capital,Vehicle Conversion Specialists Ltd,715474,-122062.51
DOH,London Ambulance Service NHS Trust,11/04/2023,Vehicles,Capital,Vehicle Conversion Specialists Ltd,715475,-122062.51
DOH,London Ambulance Service NHS Trust,11/04/2023,Vehicles,Capital,Vehicle Conversion Specialists Ltd,715476,-122062.51
DOH,London Ambulance Service NHS Trust,11/04/2023,Vehicles,Capital,Vehicle Conversion Specialists Ltd,715477,-122062.51
DOH,London Ambulance Service NHS Trust,11/04/2023,Vehicles,Capital,Vehicle Conversion Specialists Ltd,715478,-122062.51
DOH,London Ambulance Service NHS Trust,05/04/2023,Professional Fees & Services,Ambulance Evaluation,Loughborough University,715482,60553.49
DOH,London Ambulance Service NHS Trust,05/04/2023,Network Equipment & Services,Capital,Norbeck Ltd,715485,30492
DOH,London Ambulance Service NHS Trust,12/04/2023,Building Maintenance,Westminster Estates,Iiex Industries Group Uk Ltd,715499,31199.26
DOH,London Ambulance Service NHS Trust,03/04/2023,Mobile Phone Purchase,New Starter It Equipment,Vodafone Corporate Limited,715507,126000
DOH,London Ambulance Service NHS Trust,05/04/2023,External Training Services,"It Risk, Governance & Cyber",Firebrand Training Ltd,715579,48000
DOH,London Ambulance Service NHS Trust,14/04/2023,Cad Tools Maintenance,Cad Support,Peraton International Llc,715626,59902.75
DOH,London Ambulance Service NHS Trust,05/04/2023,Computer Software Maintenance,End User Computing,Cdw Ltd,715680,200994.7
DOH,London Ambulance Service NHS Trust,05/04/2023,Computer Periphs & Accessories,New Starter It Equipment,Cdw Ltd,715710,118200
DOH,London Ambulance Service NHS Trust,19/04/2023,Cad Tools Maintenance,Cad Support,Priority Dispatch,715758,300453
DOH,London Ambulance Service NHS Trust,05/04/2023,Consultancy Fees,P&C Management,Sea Change Consultancy Ltd,715766,53700
DOH,London Ambulance Service NHS Trust,14/04/2023,Professional Fees & Services,St Andrews House Estates,Kendall Kingscott Ltd,715770,69300
DOH,London Ambulance Service NHS Trust,21/04/2023,Furniture & Fittings,Brentside Park Training,Bhc Healthcare Furniture Ltd,715928,28881.94
DOH,London Ambulance Service NHS Trust,05/04/2023,Design Engineers Fees,Capital,Telent Technology Services Ltd,716158,52801.2
DOH,London Ambulance Service NHS Trust,05/04/2023,Computer Software,Od & Tm Management,Advance Change Ltd Trading As Actus Software,716163,175758
DOH,London Ambulance Service NHS Trust,05/04/2023,Course And Conference Fees,Hee Income Uni Placements,Learning Tree International Ltd,716171,27000
DOH,London Ambulance Service NHS Trust,12/04/2023,Training Equipment,Hazardous Area Response Team,Mdt Global Solutions Ltd,716172,38400
DOH,London Ambulance Service NHS Trust,05/04/2023,Course And Conference Fees,Hee Cpd Income 2022-23,World Extreme Medicine Ltd,716176,40275
DOH,London Ambulance Service NHS Trust,19/04/2023,Professional Fees & Services,Infrastructure Modernisation,Mason Advisory Limited,716349,122191.27
DOH,London Ambulance Service NHS Trust,12/04/2023,Managed Service - Call Handler,111 Nwl Operations,Practice Plus Group Urgent Care Limited,716844,217976
DOH,London Ambulance Service NHS Trust,12/04/2023,Surveyors Fees,Capital,Aecom Limited,717096,33000
DOH,London Ambulance Service NHS Trust,12/04/2023,Surveyors Fees,Capital,Aecom Limited,717097,33000
DOH,London Ambulance Service NHS Trust,12/04/2023,Training Equipment,Hazardous Area Response Team,Johnson Health Tech Uk Ltd,717101,30969.6
DOH,London Ambulance Service NHS Trust,11/04/2023,Vehicles,Capital,Vehicle Conversion Specialists Ltd,717162,-122062.51
DOH,London Ambulance Service NHS Trust,14/04/2023,Professional Fees & Services,Strategy,Palantir Technologies Uk Ltd,717263,100200
DOH,London Ambulance Service NHS Trust,21/04/2023,Resus Equipment Purchase,App Critical Care,Philips Electronics Uk Limited,717592,44397.6
DOH,London Ambulance Service NHS Trust,21/04/2023,Resus Equipment Purchase,App Critical Care,Philips Electronics Uk Limited,717611,70798.8
DOH,London Ambulance Service NHS Trust,19/04/2023,Professional Fees & Services,Im&T Management,Gartner Uk Limited,717648,27240
DOH,London Ambulance Service NHS Trust,19/04/2023,Course And Conference Fees,Hee Income Uni Placements 2021-22,Harlington Hospice Association Ltd,717797,26400
DOH,London Ambulance Service NHS Trust,21/04/2023,Ambulance Equipment,Supply & Material Management,Openhouse Products Ltd,717834,45893.88
DOH,London Ambulance Service NHS Trust,19/04/2023,Vehicles,Capital,Volvo Car Uk Ltd,717930,38530
DOH,London Ambulance Service NHS Trust,21/04/2023,Security Firms,Hq Building Services,Profile Security Services Limited,718074,27710.66
DOH,London Ambulance Service NHS Trust,19/04/2023,Vehicles,Capital,Ferno (Uk),718237,107404.8
DOH,London Ambulance Service NHS Trust,19/04/2023,Medical Equipment,Managed Stores,Proact Medical Ltd,718270,8134.2
DOH,London Ambulance Service NHS Trust,19/04/2023,Medical & Surgical Items,Managed Stores,Proact Medical Ltd,718270,33065.4
DOH,London Ambulance Service NHS Trust,21/04/2023,Private Ambulance Hire,Ops Central - Private Amb,Emfs Group Ltd,718304,46814.53
DOH,London Ambulance Service NHS Trust,21/04/2023,Private Ambulance Hire,Ops Central - Private Amb,Emfs Group Ltd,718323,47529.3
DOH,London Ambulance Service NHS Trust,21/04/2023,Private Ambulance Hire,Ops Central - Private Amb,Emfs Group Ltd,718324,43343.91
DOH,London Ambulance Service NHS Trust,21/04/2023,Mobile Phone Accessories,New Starter It Equipment,Cdw Ltd,718668,53962.27
DOH,London Ambulance Service NHS Trust,21/04/2023,Professional Fees & Services,Director Of Finance,Pricewaterhousecoopers,718851,146034
DOH,London Ambulance Service NHS Trust,05/04/2023,Drugs Stock - Central Stores,Balance Sheet,Frimley Health Nhs Foundation Trust,7389,26834.1
DOH,London Ambulance Service NHS Trust,05/04/2023,Course And Conference Fees,Hazardous Area Response Team,West Midlands Ambulance Service,7460,27299.74
DOH,London Ambulance Service NHS Trust,05/04/2023,Gp Services,111 Nel Operations - Cas,Nhs North East London Icb,7471,26100
DOH,London Ambulance Service NHS Trust,05/04/2023,Medical Equipment,Pcn - Merton Trial,Nhs Supply Chain,7484,25171.2
DOH,London Ambulance Service NHS Trust,19/04/2023,Drug Management Fee,Pharmacy Team,Frimley Health Nhs Foundation Trust,7555,47250
DOH,London Ambulance Service NHS Trust,19/04/2023,Defibrillator Maintenance,Supply & Material Management,Nhs Supply Chain Maintenance,7556,35098.61
DOH,London Ambulance Service NHS Trust,17/04/2023,BP Control Account,Balance Sheet,BP Oil,105137,164093.65
DOH,London Ambulance Service NHS Trust,24/03/2023,Medical Gas,Director Of Ops,British Oxygen,105228,143489.73
DOH,London Ambulance Service NHS Trust,26/04/2023,Ensign Insurance Pre-Payment,Balance Sheet,QBE INSURANCE / EU,105448,240843.99
